[Event "Croatian Championship 2022"]
[Site "Split"]
[Date "2022.12.07"]
[Round "9.4"]
[White "Kurajica, Bojan"]
[Black "Bosiocic, Marin"]
[Result "1-0"]
[ECO "D38"]
[WhiteElo "2487"]
[BlackElo "2536"]
[Annotator "TA"]
[PlyCount "97"]
[EventDate "2022.11.29"]
[EventType "tourn"]
[EventCountry "CRO"]
[SourceTitle "playchess.com"]
[Source "ChessBase"]
[SourceQuality "1"]
[TimeControl "40/5400+30:1800+30"]

{[%evp 15,97,12,17,20,20,20,18,22,15,9,9,8,14,7,12,10,14,0,0,0,0,0,0,0,27,27,26,7,7,8,30,26,67,54,45,0,0,0,0,0,0,0,0,0,0,0,0,0,0,0,0,0,0,0,0,-14,0,0,68,0,-7,-16,251,257,431,408,400,377,861,707,763,758,1151,1060,1142,1189,1330,1137,1306,529,1046,897,29950,5477]} 1. d4 {[%emt 0:00:03]} Nf6 {[%emt 0:00:06]} 2. Nf3 {[%emt 0:00:08]} d5 {[%emt 0:00:06]} 3. c4 {[%emt 0:00:12]} e6 {[%emt 0:00:05]} 4. Nc3 {[%emt 0:00:15]} Bb4 {[%emt 0:00:05]} 5. Bg5 {[%emt 0:00:46]} h6 {[%emt 0:00:06]} 6. Bxf6 {[%emt 0:00:57]} Qxf6 {[%emt 0:00:08]} 7. e3 {[%emt 0:08:54]} O-O {[%emt 0:00:08]} 8. Rc1 {[%emt 0:00:41]} Nc6 {[%emt 0:00:06]} 9. a3 {[%emt 0:10:49] D38: Queen's Gambit Declined: Ragozin Defence (4 Nf3 Bb4).} Bxc3+ {[%emt 0:00:05]} 10. Rxc3 {[%emt 0:00:04]} dxc4 {[%emt 0:00:31]} 11. Bxc4 {[%emt 0:00:22] The position is equal.} e5 {[%emt 0:00:03]} 12. dxe5 {[%emt 0:09:11]} Nxe5 {[%emt 0:00:04]} 13. Nxe5 {[%emt 0:00:24]} Qxe5 {[%emt 0:00:04]} 14. O-O {[%emt 0:00:15]} c6 {[%emt 0:01:04]} 15. Qb3 {[%emt 0:01:59]} Qe7 {[%emt 0:00:29]} 16. Rd1 {[%emt 0:01:13]} Bf5 {[%emt 0:00:19] [#]} 17. Bd3 $146 {[%emt 0:04:48]} ({Predecessor:} 17. f3 Rfd8 18. e4 Rxd1+ 19. Qxd1 Rd8 20. Rd3 Rxd3 21. Qxd3 Qc5+ 22. Kf1 Be6 23. b3 Qxa3 24. Bxe6 {½-½ (35) Checa,N (2506)-Bloomer,J (1950) Chess.com INT 2019}) 17... Bg4 {[%emt 0:05:21]} 18. f3 {[%emt 0:03:13]} Be6 {[%emt 0:00:32]} 19. Bc4 {[%emt 0:00:21]} Bf5 {[%emt 0:00:27]} 20. e4 {[%emt 0:04:09]} Bg6 {[%emt 0:00:04]} 21. Qc2 {[%emt 0:06:01]} Rad8 {[%emt 0:01:08]} 22. Rcd3 {[%emt 0:00:51]} Rxd3 {[%emt 0:04:28]} 23. Qxd3 {[%emt 0:00:28]} b5 {[%emt 0:05:39]} 24. Ba2 {[%emt 0:02:51]} Qc5+ {[%emt 0:04:43]} 25. Kf1 {[%emt 0:12:42]} Qe5 {[%emt 0:02:44][%csl LRb2,LRh2]} 26. Qd4 {[%emt 0:08:34]} Qxh2 {[%emt 0:01:16]} 27. Qxa7 {[%emt 0:00:47]} Kh7 {[%emt 0:04:14]} 28. Qc5 {[%emt 0:04:21]} Re8 {[%emt 0:05:51]} 29. Kf2 {[%emt 0:04:33]} Re5 {[%emt 0:02:42]} 30. Qd6 {[%emt 0:02:11] Active counter play!} Qh4+ {[%emt 0:06:44]} 31. Kg1 {[%emt 0:00:59]} Qg3 {[%emt 0:00:12]} 32. Qb8 {[%emt 0:02:57]} (32. Qxc6 $2 Bxe4 33. Qc7 (33. fxe4 Qe3+ 34. Kf1 Rh5) 33... Bg6 $19) 32... Qf4 {[%emt 0:18:20] Hoping for ...Qe3+.} 33. Kf2 {[%emt 0:03:52] Inhibits Qe3+.} Qh4+ {[%emt 0:01:56]} (33... Bxe4 $2 34. Bxf7 $1 {[%mdl 512]} Qxf7 35. Qxe5 $18) 34. Kg1 $1 {[%emt 0:00:35]} (34. Ke2 $2 Qg3 35. Rd8 (35. Kf1 $2 Bxe4 36. Qd6 Bc2 $19) 35... Bxe4 $1 {[%mdl 512]} 36. fxe4 Qxg2+ 37. Kd1 Qxe4 38. Rh8+ Kg6 39. Qd6+ f6 $19) 34... Rc5 {[%emt 0:00:37] aiming for ...Rc2.} 35. Bb3 {[%emt 0:01:26] Prevents Rc2.} Qg5 {[%emt 0:01:41] And now ...Qe3+ would win.} 36. Kf2 $40 {[%emt 0:00:08][%mdl 128] Against Qe3+. Rd8 is the strong threat. White mounts an attack.} Qf6 {[%emt 0:04:08]} (36... Qh4+ $11 37. Ke3 Rg5) 37. Rd2 {[%emt 0:00:16]} ({White should play} 37. Rd8 $1 $14 Qxb2+ 38. Kf1 Rc1+ 39. Bd1 Rxd1+ 40. Rxd1) 37... Bxe4 {[%emt 0:04:33] Threatens to win with ...Rf5.} 38. Qd6 {[%emt 0:02:24]} Qh4+ $2 {[%emt 0:06:21][%mdl 8192] [#] This costs Black the game.} (38... Qxd6 $11 39. Rxd6 Bg6) 39. g3 $1 $18 {[%emt 0:02:34]} ({Not} 39. Qg3 Qxg3+ 40. Kxg3 Bg6 $15) 39... Qh2+ {[%emt 0:01:55]} (39... Qh1 {was worth a try.} 40. fxe4 Rc1) 40. Ke3 {[%emt 0:00:00][%mdl 64] Discovered Attack} Qg1+ {[%emt 0:00:00]} 41. Kxe4 {[%emt 0:01:19]} f5+ {[%emt 0:02:27]} (41... Qe1+ 42. Kd3 (42. Kf4 g5+ 43. Kg4 f5+ 44. Kh3 Qh1+ 45. Rh2 g4+ 46. fxg4 fxg4+ 47. Kxg4 Rg5+ 48. Kh3 Rh5+ 49. Kg4 Rg5+ 50. Kh3 Rh5+ 51. Kg4 Rg5+ $11) 42... Qf1+ 43. Ke3 Qg1+ 44. Rf2 Qc1+ 45. Qd2 Qg1) 42. Kd3 {[%emt 0:02:18]} Qf1+ {[%emt 0:02:49]} 43. Re2 {[%emt 0:06:06]} Rc1 {[%emt 0:02:14]} 44. Qf4 {[%emt 0:05:07]} Rc5 {[%emt 0:01:32]} 45. Qe3 {[%emt 0:02:22]} Rc1 {[%emt 0:02:14]} 46. Kd2 {[%emt 0:05:48] White threatens Qe6 and mate.} Rb1 {[%emt 0:04:25]} 47. Kc3 {[%emt 0:00:43]} (47. Qe5 $142 Qxf3 48. Be6 Rxb2+ 49. Qxb2) 47... Rc1+ {[%emt 0:05:41]} 48. Bc2 {[%emt 0:00:44] Black must now prevent Qd3.} h5 {[%emt 0:00:45]} 49. Qd3 {[%emt 0:01:34] Weighted Error Value: White=0.05 (flawless) /Black=0.30} 1-0

[Event "Croatian Championship 2022"]
[Site "Split"]
[Date "2022.12.07"]
[Round "9.5"]
[White "Brkic, Ante"]
[Black "Bukal, Vladimir Jr."]
[Result "1-0"]
[ECO "B90"]
[WhiteElo "2610"]
[BlackElo "2411"]
[Annotator "TA"]
[PlyCount "79"]
[EventDate "2022.11.29"]
[EventType "tourn"]
[EventCountry "CRO"]
[SourceTitle "playchess.com"]
[Source "ChessBase"]
[SourceQuality "1"]
[TimeControl "40/5400+30:1800+30"]

{[%evp 11,78,24,38,35,37,51,48,40,47,41,51,28,47,37,36,40,47,47,46,45,25,7,43,48,82,63,116,110,133,127,163,160,290,170,166,174,226,259,212,122,262,259,392,369,344,241,229,255,545,545,524,520,625,617,528,208,1163,405,518,420,433,422,386,412,670,332,29990,29990,29999]} 1. e4 {[%emt 0:00:05]} c5 {[%emt 0:00:05]} 2. Nf3 {[%emt 0:00:16]} d6 {[%emt 0:00:05]} 3. d4 {[%emt 0:03:07]} cxd4 {[%emt 0:00:09]} 4. Nxd4 {[%emt 0:00:06]} Nf6 {[%emt 0:00:07]} 5. Nc3 {[%emt 0:00:03]} a6 {[%emt 0:00:05]} 6. h3 {[%emt 0:08:30]} Nc6 {[%emt 0:02:17]} 7. g4 {[%emt 0:01:54][%cal Bg2g4,Bg4g5][%mdl 32] B90: Sicilian Najdorf: Unusual White 6th moves, 6 Be3 Ng4 and 6 Be3 e5.} Nxd4 {[%emt 0:03:17]} 8. Qxd4 {[%emt 0:02:30]} e5 {[%emt 0:00:07] Against g5} 9. Qd3 {[%emt 0:16:33] White is slightly better.} Be7 {[%emt 0:00:08]} 10. g5 {[%emt 0:05:30]} Nd7 {[%emt 0:02:50] [#]} 11. Qg3 $146 {[%emt 0:00:05]} ({Predecessor:} 11. Be3 Nc5 12. Qd2 Qa5 13. a3 Qd8 14. Bg2 Be6 15. O-O-O Rc8 16. Kb1 b5 17. h4 {1-0 (31) Evans,S (1746)-Stevens,D ICCF email 2016}) 11... Nc5 {[%emt 0:13:07]} 12. Be3 {[%emt 0:02:48]} Qa5 {[%emt 0:00:59]} 13. Bxc5 {[%emt 0:03:43]} Qxc5 {[%emt 0:02:12]} 14. O-O-O {[%emt 0:00:11]} Be6 {[%emt 0:04:18]} 15. Nd5 {[%emt 0:02:51]} Rc8 {[%emt 0:01:29][%csl Gc8][%cal Rc5c2]} 16. c3 {[%emt 0:00:24] Active counter play!} b5 {[%emt 0:08:14]} (16... h6 {seems wilder.} 17. h4 hxg5 18. Bh3 Bxh3 19. hxg5 Qc4) 17. Kb1 {[%emt 0:02:03]} Qa7 {[%emt 0:13:54]} 18. h4 {[%emt 0:05:51][%cal Bh3h4,Bh4h5][%mdl 32]} Rc5 {[%emt 0:06:26]} (18... Bxd5 $14 19. Rxd5 O-O) 19. f4 $16 {[%emt 0:03:41]} Qb8 {[%emt 0:09:38]} 20. h5 {[%emt 0:04:41] Strongly threatening Nxe7.} Bd8 {[%emt 0:10:34]} 21. Rh2 {[%emt 0:07:33]} a5 {[%emt 0:06:03]} (21... exf4 $16 22. Qxf4 O-O) 22. Rhd2 {[%emt 0:02:20]} (22. h6 $142 g6 23. fxe5 dxe5 24. b4 axb4 25. cxb4 Rxd5 26. exd5 Bf5+ 27. Bd3) 22... exf4 $18 {[%emt 0:07:52]} 23. Qxf4 {[%emt 0:00:20]} h6 {[%emt 0:02:23]} (23... O-O $142 24. h6 Bxd5 25. Rxd5 Rxd5 26. Rxd5 b4) 24. gxh6 $1 {[%emt 0:04:12]} Rxh6 {[%emt 0:00:16] [#]} 25. Qg3 {[%emt 0:05:05]} ({White should try} 25. Rg2 $1 $18 {[%cal Rg2g7]} Kf8 26. Qg3) 25... Kf8 {[%emt 0:01:21] This costs Black the game.} (25... Bxd5 $16 {is a better defense.} 26. Rxd5 Rxd5 27. Rxd5 Kf8) 26. Rg2 {[%emt 0:02:39]} Rh7 {[%emt 0:01:00]} (26... Bf6 {was called for.} 27. Nxf6 Rxf6 28. Qxg7+ (28. Qxd6+ $2 {loses.} Qxd6 29. Rxd6 Rxf1+ $19) 28... Ke7) 27. Bd3 {[%emt 0:00:30]} (27. h6 g5 28. Qh2 b4 $18) 27... Ke8 {[%emt 0:03:14]} 28. Qf3 {[%emt 0:02:13] aiming for Rdg1.} Qb7 {[%emt 0:01:20]} 29. Rdg1 {[%emt 0:00:42]} Bf6 {[%emt 0:00:29]} (29... Rh6 {was worth a try.} 30. Rxg7 Bxd5 31. Rg8+ Ke7) 30. Nxf6+ {[%emt 0:03:16]} gxf6 {[%emt 0:00:01]} 31. Qxf6 {[%emt 0:00:16]} Qe7 {[%emt 0:00:21]} 32. Rg8+ {[%emt 0:02:11]} Kd7 {[%emt 0:00:01]} 33. Qd4 {[%emt 0:00:47]} (33. Qf3 {[%cal Oe4e5] Black must now prevent e5!} Re5 34. Ra8) 33... Rhxh5 {[%emt 0:00:39] [#]} (33... Bc4 34. Bxc4 bxc4) 34. Ra8 {[%emt 0:01:13]} (34. Bxb5+ $142 $1 {[%mdl 512]} Kc7 35. Re8 Qxe8 36. Bxe8) 34... Kc6 {[%emt 0:01:41]} 35. Rxa5 {[%emt 0:01:10]} Bc4 {[%emt 0:00:35]} 36. Bxc4 {[%emt 0:02:49]} bxc4 {[%emt 0:00:17]} 37. Ra6+ {[%emt 0:00:11]} Kb5 {[%emt 0:00:24]} (37... Kb7 $142) 38. Rxd6 {[%emt 0:00:30]} ({Weaker is} 38. Qxd6 Qxd6 39. Rxd6 Rce5 $18) (38. Ra8 $142) 38... Rhe5 $2 {[%emt 0:00:36]} (38... Qe5 $18 39. Rd7 Qxd4 40. cxd4 Rc6 41. Rxf7 Rd6) 39. b4 {[%emt 0:02:50]} cxb3 {[%emt 0:00:42]} 40. Qb4# {[%emt 0:00:00] Weighted Error Value: White=0.47/Black=0.70} 1-0

[Event "Croatian Championship 2022"]
[Site "Split"]
[Date "2022.12.07"]
[Round "9.6"]
[White "Saric, Ivan"]
[Black "Zelcic, Robert"]
[Result "1-0"]
[ECO "B12"]
[WhiteElo "2674"]
[BlackElo "2496"]
[Annotator "TA"]
[PlyCount "127"]
[EventDate "2022.11.29"]
[EventType "tourn"]
[EventCountry "CRO"]
[SourceTitle "playchess.com"]
[Source "ChessBase"]
[SourceQuality "1"]
[TimeControl "40/5400+30:1800+30"]

{[%evp 9,127,0,0,0,0,0,5,-1,26,26,18,11,38,40,42,39,55,58,56,54,63,55,89,39,36,36,52,22,23,29,23,7,61,-60,-54,-95,-113,-104,-87,-129,-122,-152,-130,-225,-235,-262,-117,-379,-360,-391,-376,-592,-605,-663,-58,-47,-71,-73,-61,-58,-34,-77,-78,-52,-77,-65,-68,-206,-232,-228,0,0,0,0,0,-64,-36,-70,0,0,0,-314,-518,-526,-508,0,0,-478,-462,-422,-332,-309,0,0,0,0,44,47,420,386,972,1006,912,658,6691,6387,5173,4117,29979,29980,29982,29980,29980,29981,29981,29982,29982,29983,29982,5933]} 1. e4 {[%emt 0:00:02]} c6 {[%emt 0:00:04]} 2. d4 {[%emt 0:00:03]} d5 {[%emt 0:00:02]} 3. e5 {[%emt 0:00:05]} c5 {[%emt 0:00:03]} 4. Nf3 {[%emt 0:00:15]} cxd4 {[%emt 0:00:05]} 5. Qxd4 {[%emt 0:00:43]} Nc6 {[%emt 0:00:12]} 6. Qf4 {[%emt 0:00:05] B12: Caro-Kann: Advance Variation.} e6 {[%emt 0:00:03]} 7. Nc3 {[%emt 0:01:45]} Nb4 {[%emt 0:00:33] [#]} 8. Qd2 $146 {[%emt 0:00:44] The position is equal.} ({Predecessor:} 8. Bd3 Nxd3+ 9. cxd3 Ne7 10. h4 h6 11. h5 Bd7 12. Bd2 Rc8 13. O-O Nf5 14. a4 {½-½ (43) Fier,A (2567)-Vallejo Pons,F (2702) Chennai 2022}) 8... Bd7 {[%emt 0:02:07]} 9. a3 {[%emt 0:06:15]} Nc6 {[%emt 0:00:50]} 10. Bd3 {[%emt 0:01:15]} f6 {[%emt 0:00:54]} 11. Qe2 {[%emt 0:02:23]} fxe5 {[%emt 0:08:18]} 12. Nxe5 {[%emt 0:00:21]} Nxe5 {[%emt 0:00:05]} 13. Qxe5 {[%emt 0:00:04]} Nf6 {[%emt 0:01:50] Inhibits Qh5+.} 14. Be3 {[%emt 0:10:19] Against Qb6} Rc8 {[%emt 0:28:30]} 15. Nb5 {[%emt 0:05:25] White has more active pieces.} Kf7 {[%emt 0:05:05]} 16. Nd6+ {[%emt 0:00:56]} (16. Nxa7 $16 Ra8 17. O-O) 16... Bxd6 $14 {[%emt 0:00:06]} 17. Qxd6 {[%emt 0:00:03]} Re8 {[%emt 0:00:37]} 18. Bg5 {[%emt 0:14:47]} (18. Bxa7 $2 Qa5+ 19. Qb4 Qxa7 $19) 18... h6 {[%emt 0:08:03]} (18... Qa5+ {simplifies} 19. Bd2 Qc7 20. Qxc7 Rxc7 21. c3 e5) 19. Bxf6 {[%emt 0:01:56]} gxf6 {[%emt 0:00:09]} 20. Qf4 {[%emt 0:03:35] Against Ba4} Qa5+ {[%emt 0:01:29]} (20... Qc7 $11 21. Qe3 (21. Qxh6 Qe5+ 22. Qe3 Qxb2 $11) 21... Qe5) 21. b4 {[%emt 0:04:34]} ({Better is} 21. c3 $1 $14) 21... Qc7 $15 {[%emt 0:00:11]} 22. Qxh6 {[%emt 0:00:09]} Qe5+ {[%emt 0:11:53]} 23. Kd2 {[%emt 0:00:03]} Rg8 {[%emt 0:03:51][%mdl 1024] Black has strong compensation.} 24. Rae1 {[%emt 0:15:37]} Qd4 $36 {[%emt 0:00:25][%mdl 2048] Black has strong initiative.} 25. Qh7+ {[%emt 0:07:35]} Rg7 {[%emt 0:00:30]} 26. Qh5+ {[%emt 0:00:02]} (26. Qh3 $17) 26... Ke7 $19 {[%emt 0:00:35]} 27. g3 {[%emt 0:03:07]} Qxf2+ {[%emt 0:09:03]} (27... e5 $19 28. Qh6 Kf7) 28. Kd1 $2 {[%emt 0:09:10][%mdl 8192]} (28. Kc1 $17) 28... Qd4 {[%emt 0:02:08]} 29. Qh6 {[%emt 0:03:39]} Rg5 {[%emt 0:02:35]} 30. Qh7+ {[%emt 0:01:39]} (30. Qh4 {is the only way for White.} Rg4 31. Qh6) 30... Kd6 {[%emt 0:00:12]} 31. Rhf1 {[%emt 0:02:22]} Re5 $2 {[%emt 0:08:01]} (31... Ba4 $19 32. Rxe6+ Kxe6 33. Re1+ Re5 34. Qf5+ Ke7 35. Rxe5+ fxe5 36. Qxc8 Qxd3+ 37. Kc1 Qxa3+ 38. Kd1 Qa1+ 39. Kd2 Qd4+ 40. Kc1 e4 41. Qc7+ Bd7) 32. Rxe5 $15 {[%emt 0:02:09]} fxe5 {[%emt 0:00:08]} 33. Rf7 {[%emt 0:00:02]} Ba4 {[%emt 0:00:08]} 34. Ke1 $1 {[%emt 0:01:21]} Qe3+ {[%emt 0:03:07]} 35. Kf1 {[%emt 0:00:00]} e4 {[%emt 0:00:28]} 36. Qh4 {[%emt 0:00:35]} Re8 {[%emt 0:01:32] Prevents Qe7+.} (36... exd3 37. Qe7+ Ke5 38. Qf6+ Ke4 39. Qh4+ (39. Qxe6+ $2 Kd4 $19) 39... Ke5 40. Qf6+ Ke4 41. Qh4+ (41. Qxe6+ $2 Kd4 $19) 41... Ke5 42. Qf6+ $11) 37. Be2 {[%emt 0:00:30]} Bxc2 {[%emt 0:04:03]} (37... Qxa3 38. Qf4+ (38. Rxb7 Qc1+ 39. Kg2 Bc6 $11) 38... e5 39. Qf6+ Re6 40. Qd8+ Kc6 41. Qc7#) 38. Qh7 {[%emt 0:00:04]} (38. Qf6 $15) 38... Ba4 $1 $19 {[%emt 0:00:26] Strongly threatening ...Rc8.} (38... Qxa3 39. Rd7+ (39. Rxb7 Rf8+ 40. Kg1 Qe3+ 41. Kh1 Rf1+ 42. Bxf1 Qf3+ 43. Kg1 Qe3+ 44. Kh1 Qf3+ 45. Kg1 Qe3+ 46. Kh1 $11) 39... Kc6 40. Rc7+ (40. Rxb7 Rf8+ 41. Kg1 Qe3+ 42. Kh1 Rf1+ 43. Bxf1 Qf3+ 44. Kg1 Qe3+ 45. Kh1 Qf3+ 46. Kg1 Qe3+ 47. Kh1 $11) 40... Kd6 41. Qd7+ Ke5 42. Qg7+ Kd6 43. Qd7+ Ke5 44. Qg7+ Kd6 45. Qd7+) 39. b5 {[%emt 0:00:00] aiming for Rd7+.} Bxb5 {[%emt 0:00:00]} 40. Bxb5 $11 {[%emt 0:00:00] Chess con chili.} Qc1+ {[%emt 0:00:00]} 41. Kf2 {[%emt 0:06:00] White wants to mate with Rd7+.} Qc5+ {[%emt 0:00:41]} 42. Kg2 {[%emt 0:00:02]} (42. Ke1 $1 $11 Qxb5 43. Rxb7 Qa5+ 44. Kd1) 42... Qxb5 $15 {[%emt 0:00:07]} 43. Rxb7 {[%emt 0:00:04][%csl Gb7][%cal Rh7c7][%mdl 4096] Endgame KQR-KQR} Qc6 {[%emt 0:03:37] Against Qc7+} (43... Qe2+ $15 44. Kg1 Qe1+ 45. Kg2 Qe2+ 46. Kg1 Qe3+ 47. Kg2 Qd2+ 48. Kh1 Qc1+ 49. Kg2 Qc8) 44. Rxa7 $11 {[%emt 0:09:53]} e3 {[%emt 0:02:38]} 45. Qf7 $2 {[%emt 0:09:12][%mdl 8192]} (45. Qg7 $1 $11) 45... d4+ $19 {[%emt 0:06:17]} 46. Kg1 {[%emt 0:00:04] Hoping for Qf4+.} Qc1+ {[%emt 0:00:12]} 47. Kg2 {[%emt 0:00:03] Rd7+ would kill now.} Qc2+ {[%emt 0:00:14]} (47... Qc6+ 48. Kf1 $17) 48. Kg1 $2 {[%emt 0:00:20][%mdl 8192]} (48. Kh1 $1 $11 {and White has nothing to worry.} Qc6+ 49. Kg1) 48... Qf2+ $1 {[%emt 0:01:29]} 49. Qxf2 {[%emt 0:00:05]} exf2+ {[%emt 0:00:03]} 50. Kxf2 {[%emt 0:00:04] KR-KR} Kd5 $2 {[%emt 0:00:11]} ({Black should try} 50... e5 $19 {Threatens to win with ...e4.} 51. Ke2 e4) 51. g4 $1 $11 {[%emt 0:01:11][%cal Bg3g4,Bg4g5,Bg5g6,Bg6g7][%mdl 32]} e5 {[%emt 0:01:03]} 52. g5 $1 {[%emt 0:00:18]} e4 {[%emt 0:00:27]} 53. Rd7+ {[%emt 0:05:34]} Kc4 $2 {[%emt 0:00:19][%mdl 8192]} (53... Ke5 $14) 54. g6 $1 $18 {[%emt 0:01:08]} Kd3 $2 {[%emt 0:04:43]} (54... e3+ 55. Ke2 Rf8) 55. g7 $1 {[%emt 0:00:04]} e3+ {[%emt 0:00:07] [#]} 56. Kf1 $1 {[%emt 0:00:27] And now h4 would win.} e2+ {[%emt 0:09:54]} 57. Ke1 {[%emt 0:00:03]} Rb8 {[%emt 0:00:06]} 58. Re7 {[%emt 0:01:41]} Rc8 {[%emt 0:05:16]} 59. Rxe2 {[%emt 0:03:27] White mates.} Kc3 {[%emt 0:00:01]} 60. Rf2 {[%emt 0:00:52]} Re8+ {[%emt 0:01:17] [#]} 61. Kd1 $1 {[%emt 0:00:09]} Rb8 {[%emt 0:00:54]} 62. Rf8 {[%emt 0:00:26]} Rb1+ {[%emt 0:00:03]} 63. Ke2 {[%emt 0:00:02]} d3+ {[%emt 0:00:02]} 64. Kf2 {[%emt 0:00:15] Weighted Error Value: White=0.42/Black=0.51} (64. Ke3 $142 Re1+ 65. Kf2 d2 66. g8=Q (66. g8=B {is a self mate.} d1=Q 67. Rc8+ Kb2 68. Rb8+ Ka1) 66... Rf1+ 67. Kxf1 d1=Q+ 68. Kg2 Qe2+ 69. Rf2) 1-0

[Event "Croatian Championship 2022"]
[Site "Split"]
[Date "2022.12.08"]
[Round "10.1"]
[White "Martinovic, Sasa"]
[Black "Zelcic, Robert"]
[Result "1/2-1/2"]
[WhiteElo "2557"]
[BlackElo "2496"]
[Annotator "TA"]
[PlyCount "33"]
[EventDate "2022.11.29"]
[EventType "tourn"]
[EventCountry "CRO"]
[SourceTitle "playchess.com"]
[Source "ChessBase"]
[SourceQuality "1"]
[TimeControl "40/5400+30:1800+30"]

{[%evp 16,19,3,0,28,18]} 1. d4 {[%emt 0:00:02]} Nf6 {[%emt 0:00:05]} 2. c4 {[%emt 0:00:03]} e6 {[%emt 0:00:06]} 3. Nc3 {[%emt 0:00:03]} Bb4 {[%emt 0:00:04]} 4. Nf3 {[%emt 0:00:03]} c5 {[%emt 0:00:13]} 5. g3 {[%emt 0:00:05]} cxd4 {[%emt 0:00:03]} 6. Nxd4 {[%emt 0:00:05]} O-O {[%emt 0:00:14]} 7. Bg2 {[%emt 0:00:09]} d5 {[%emt 0:00:01]} 8. cxd5 {[%emt 0:00:37]} Nxd5 {[%emt 0:00:03]} 9. Qb3 {[%emt 0:00:12]} Bc5 {[%emt 0:00:02] E20: Nimzo-Indian: 4 g3 and 4 f3.} 10. Nxd5 {[%emt 0:04:06] [#] A balanced but interesting game.} {Predecessor:} Bxd4 $146 11. Nc3 Nc6 12. O-O e5 13. e3 Bxc3 14. Qxc3 Bg4 15. b4 Rc8 16. Qb2 Re8 17. Bd2 {½-½ (25) Spasov,S (2288)-Binas,J (2319) ICCF email 2016} 1/2-1/2

[Event "Croatian Championship 2022"]
[Site "Split"]
[Date "2022.12.08"]
[Round "10.2"]
[White "Bukal, Vladimir Jr."]
[Black "Saric, Ivan"]
[Result "0-1"]
[ECO "A48"]
[WhiteElo "2411"]
[BlackElo "2674"]
[Annotator "TA"]
[PlyCount "82"]
[EventDate "2022.11.29"]
[EventType "tourn"]
[EventCountry "CRO"]
[SourceTitle "playchess.com"]
[Source "ChessBase"]
[SourceQuality "1"]
[TimeControl "40/5400+30:1800+30"]

{[%evp 15,82,0,1,0,2,8,11,0,0,0,0,0,10,8,22,-19,0,-17,-8,-15,-17,-22,-18,-20,-11,-7,-9,-14,-9,-44,-35,-33,-39,-54,-56,-52,-58,-97,-97,-97,-97,-124,-118,-120,-122,-129,-50,-184,-173,-177,-188,-258,-243,-327,-327,-297,-262,-235,-245,-564,-561,-551,-547,-685,-673,-1155,-1125,-1065,-778]} 1. d4 {[%emt 0:00:03]} Nf6 {[%emt 0:03:04]} 2. Nf3 {[%emt 0:00:05]} g6 {[%emt 0:01:01]} 3. Bg5 {[%emt 0:00:10]} Bg7 {[%emt 0:00:21]} 4. Nbd2 {[%emt 0:00:16]} O-O {[%emt 0:00:19]} 5. c3 {[%emt 0:00:19]} h6 {[%emt 0:00:12]} 6. Bh4 {[%emt 0:00:14]} d6 {[%emt 0:00:05]} 7. e4 {[%emt 0:00:17]} c5 $1 {[%emt 0:00:56] 7...c5 scores better than 7...Nbd7.} 8. dxc5 {[%emt 0:00:18]} dxc5 {[%emt 0:00:05]} 9. Qc2 {[%emt 0:03:50] A48: 1 d4 Nf6 2 Nf3 g6: Torre, London and Colle Systems.} Nc6 {[%emt 0:00:55]} 10. Be2 {[%emt 0:02:54]} Nh5 {[%emt 0:01:11]} 11. O-O {[%emt 0:02:32] The position is equal.} g5 $5 {[%emt 0:04:22][%mdl 4] A promising side line.} 12. Bg3 {[%emt 0:00:15]} Nxg3 {[%emt 0:05:32]} 13. hxg3 {[%emt 0:00:18]} Qc7 {[%emt 0:02:30]} 14. Nc4 {[%emt 0:01:54]} b6 {[%emt 0:01:35]} 15. Rfe1 {[%emt 0:03:06][%cal Oe4e5]} Bb7 {[%emt 0:01:19]} 16. a4 {[%emt 0:07:16]} Rad8 {[%emt 0:00:17]} 17. Rad1 {[%emt 0:05:17]} e6 {[%emt 0:01:24]} 18. Rxd8 {[%emt 0:04:22]} Rxd8 {[%emt 0:00:51]} 19. Rd1 {[%emt 0:02:33]} g4 {[%emt 0:00:31] [#]} 20. Rxd8+ $146 {[%emt 0:01:22]} ({Predecessor:} 20. Nh2 h5 21. Nf1 Ne5 22. Rxd8+ Qxd8 23. Qd2 Qxd2 24. Ncxd2 Bc6 25. Bb5 Bxb5 26. axb5 {0-1 (54) Itkis,B (2350)-Nevednichy,V (2563) Calimanesti 2014}) 20... Qxd8 {[%emt 0:00:13]} 21. Ne1 {[%emt 0:08:48]} h5 {[%emt 0:00:22]} 22. Qc1 {[%emt 0:00:58]} Ne5 {[%emt 0:10:21]} 23. Nxe5 {[%emt 0:04:00]} Bxe5 {[%emt 0:00:05] A strong pair of Bishops.} 24. Qh6 {[%emt 0:10:54]} Bg7 {[%emt 0:10:14]} 25. Qf4 {[%emt 0:00:50]} Bc6 {[%emt 0:03:01][%cal Bb7c6,Bc6a4,Ba4d1][%mdl 32]} 26. f3 {[%emt 0:17:23]} Bxa4 {[%emt 0:07:04]} 27. fxg4 {[%emt 0:00:19]} Bd1 {[%emt 0:07:14]} 28. Bf3 {[%emt 0:05:17]} hxg4 {[%emt 0:00:39] Black is more active.} 29. Qxg4 {[%emt 0:02:44]} Bb3 {[%emt 0:02:17]} 30. Qf4 {[%emt 0:01:24] Inhibits Qd2.} a5 {[%emt 0:03:32]} ({Black should play} 30... e5 $17 31. Qe3 Qf6) 31. Bh5 {[%emt 0:02:20] [#] Loses the game.} (31. Be2 $1 $15) 31... e5 $1 $36 {[%emt 0:00:13][%mdl 2048] Keeping White busy.} 32. Qe3 {[%emt 0:03:07] [#]} Qd6 $1 {[%emt 0:02:28]} 33. Nd3 {[%emt 0:01:04]} (33. Qe2 {keeps fighting.}) 33... a4 {[%emt 0:07:13]} 34. Kh2 {[%emt 0:05:10]} Qh6 {[%emt 0:02:02]} 35. Qf3 {[%emt 0:00:22]} ({Much worse is} 35. Qxh6 Bxh6 36. Kg1 f6 $19) 35... Qd2 {[%emt 0:02:29]} 36. Nf2 {[%emt 0:00:37]} Qxb2 {[%emt 0:01:54]} 37. Ng4 $2 {[%emt 0:00:22]} (37. Qe3 {was the crucial defense.} Qc2 38. Ng4) 37... Qd2 {[%emt 0:01:18] Black is clearly winning.} 38. Ne3 {[%emt 0:03:00]} Be6 {[%emt 0:03:48] Threatens to win with ...a3.} 39. Nd5 {[%emt 0:01:39]} Qg5 {[%emt 0:03:32] ...a3 is the strong threat.} 40. Qd1 {[%emt 0:00:00]} a3 {[%emt 0:00:00] Hoping for ...a2.} 41. Be2 {[%emt 0:02:46]} Bf8 {[%emt 0:10:00] Weighted Error Value: White=0.46/Black=0.06 (flawless)} 0-1